[Event "*** Titled Tuesday Blitz"]
[Site "Chess.com"]
[Date "2020.11.03"]
[Round "8"]
[White "TST2014"]
[Black "tsvet2005"]
[Result "1-0"]
[WhiteElo "2515"]
[BlackElo "2685"]
[TimeControl "180+1"]
[EndTime "11:32:52 PST"]
[Termination "TST2014 won on time"]

1. d4 {[%clk 0:02:57]} 1... d5 {[%clk 0:02:55.2]} 2. c4 {[%clk 0:02:56.8]} 2...
e6 {[%clk 0:02:55.6]} 3. Nf3 {[%clk 0:02:56.5]} 3... Nf6 {[%clk 0:02:55.7]} 4.
Nc3 {[%clk 0:02:56.3]} 4... c6 {[%clk 0:02:55.9]} 5. e3 {[%clk 0:02:55.7]} 5...
Nbd7 {[%clk 0:02:56.1]} 6. Qc2 {[%clk 0:02:55.5]} 6... Bd6 {[%clk 0:02:56.1]} 7.
Be2 {[%clk 0:02:55.1]} 7... O-O {[%clk 0:02:56]} 8. O-O {[%clk 0:02:55.2]} 8...
dxc4 {[%clk 0:02:56.6]} 9. a4 {[%clk 0:02:55.2]} 9... e5 {[%clk 0:02:52.7]} 10.
Bxc4 {[%clk 0:02:54]} 10... exd4 {[%clk 0:02:52.3]} 11. exd4 {[%clk 0:02:54]}
11... Nb6 {[%clk 0:02:51.6]} 12. Bb3 {[%clk 0:02:54]} 12... Nbd5 {[%clk
0:02:49.9]} 13. Bg5 {[%clk 0:02:49.9]} 13... Qa5 {[%clk 0:02:29.5]} 14. Bd2
{[%clk 0:02:34.1]} 14... Nb4 {[%clk 0:02:15.1]} 15. Qd1 {[%clk 0:02:29.9]} 15...
Bf5 {[%clk 0:02:04.7]} 16. Na2 {[%clk 0:02:16.5]} 16... Qb6 {[%clk 0:01:55.7]}
17. a5 {[%clk 0:02:14.1]} 17... Qb5 {[%clk 0:01:50.6]} 18. Nxb4 {[%clk
0:02:09.1]} 18... Bxb4 {[%clk 0:01:51.5]} 19. Ba4 {[%clk 0:02:09.2]} 19... Qxa5
{[%clk 0:01:36.2]} 20. Bxc6 {[%clk 0:02:08.7]} 20... Qb6 {[%clk 0:01:34.4]} 21.
Qb3 {[%clk 0:01:53.4]} 21... Bxd2 {[%clk 0:01:25.3]} 22. Qxb6 {[%clk 0:01:51]}
22... axb6 {[%clk 0:01:25.6]} 23. Bxb7 {[%clk 0:01:51.3]} 23... Rxa1 {[%clk
0:01:24.6]} 24. Rxa1 {[%clk 0:01:52]} 24... Bb4 {[%clk 0:01:22.9]} 25. Ra6
{[%clk 0:01:43]} 25... Nd7 {[%clk 0:01:13]} 26. Ne5 {[%clk 0:01:36.3]} 26...
Nxe5 {[%clk 0:01:08.9]} 27. dxe5 {[%clk 0:01:36.3]} 27... Rd8 {[%clk 0:01:07.6]}
28. h3 {[%clk 0:01:29.5]} 28... Bc5 {[%clk 0:01:07]} 29. g4 {[%clk 0:01:23.9]}
29... Be6 {[%clk 0:01:01.1]} 30. b4 {[%clk 0:01:22.5]} 30... Bd4 {[%clk
0:00:55.6]} 31. Kg2 {[%clk 0:01:19.5]} 31... h6 {[%clk 0:00:52.4]} 32. f4 {[%clk
0:01:19.3]} 32... Bd5+ {[%clk 0:00:49.2]} 33. Bxd5 {[%clk 0:01:18.5]} 33... Rxd5
{[%clk 0:00:50.1]} 34. Ra8+ {[%clk 0:01:07]} 34... Kh7 {[%clk 0:00:49.7]} 35.
Ra7 {[%clk 0:01:07.6]} 35... Kg6 {[%clk 0:00:35.2]} 36. Kf3 {[%clk 0:01:05.4]}
36... Bc3 {[%clk 0:00:30.6]} 37. h4 {[%clk 0:00:48.5]} 37... Rd3+ {[%clk
0:00:23.6]} 38. Ke4 {[%clk 0:00:46]} 38... Rd4+ {[%clk 0:00:21.6]} 39. Ke3
{[%clk 0:00:46.3]} 39... Rxb4 {[%clk 0:00:20.6]} 40. h5+ {[%clk 0:00:46]} 40...
Kh7 {[%clk 0:00:20.9]} 41. Rxf7 {[%clk 0:00:46.2]} 41... Kg8 {[%clk 0:00:14.5]}
42. Rc7 {[%clk 0:00:45]} 42... Bb2 {[%clk 0:00:13.7]} 43. e6 {[%clk 0:00:42]}
43... Bd4+ {[%clk 0:00:13.6]} 44. Kf3 {[%clk 0:00:38.4]} 44... Bc5 {[%clk
0:00:13.7]} 45. Rc8+ {[%clk 0:00:32.3]} 45... Kh7 {[%clk 0:00:13.5]} 46. Rc7
{[%clk 0:00:30.8]} 46... Ra4 {[%clk 0:00:04.7]} 47. f5 {[%clk 0:00:30.1]} 47...
Ra8 {[%clk 0:00:04]} 48. f6 {[%clk 0:00:29.8]} 48... Bd4 {[%clk 0:00:02.8]} 49.
Rxg7+ {[%clk 0:00:28.7]} 49... Kh8 {[%clk 0:00:03.3]} 50. Rf7 {[%clk 0:00:28.7]}
50... Re8 {[%clk 0:00:03.8]} 51. e7 {[%clk 0:00:28.7]} 51... Kg8 {[%clk
0:00:04.4]} 52. Rg7+ {[%clk 0:00:28.6]} 52... Kh8 {[%clk 0:00:04.7]} 53. f7
{[%clk 0:00:28.6]} 1-0

[Event "*** Titled Tuesday Blitz"]
[Site "Chess.com"]
[Date "2020.11.03"]
[Round "8"]
[White "CaspiIsrael"]
[Black "DishonorOnYourCow"]
[Result "1-0"]
[WhiteElo "2609"]
[BlackElo "2418"]
[TimeControl "180+1"]
[EndTime "11:32:53 PST"]
[Termination "CaspiIsrael won on time"]

1. e4 {[%clk 0:03:00.9]} 1... e5 {[%clk 0:02:58.2]} 2. Nf3 {[%clk 0:02:58.6]}
2... Nc6 {[%clk 0:02:58.6]} 3. d4 {[%clk 0:02:59.2]} 3... exd4 {[%clk
0:02:58.2]} 4. Nxd4 {[%clk 0:02:59.8]} 4... Nf6 {[%clk 0:02:58.8]} 5. Nxc6
{[%clk 0:02:59.5]} 5... bxc6 {[%clk 0:02:59.7]} 6. e5 {[%clk 0:03:00.4]} 6...
Qe7 {[%clk 0:03:00]} 7. Qe2 {[%clk 0:03:01]} 7... Nd5 {[%clk 0:03:00.5]} 8. c4
{[%clk 0:03:01.6]} 8... Nb6 {[%clk 0:03:00.6]} 9. Nc3 {[%clk 0:03:01.7]} 9... d6
{[%clk 0:02:59.3]} 10. exd6 {[%clk 0:02:59.9]} 10... Qxe2+ {[%clk 0:02:56.5]}
11. Bxe2 {[%clk 0:02:57.5]} 11... cxd6 {[%clk 0:02:57.1]} 12. Bf4 {[%clk
0:02:54.1]} 12... Be6 {[%clk 0:02:56.2]} 13. b3 {[%clk 0:02:53.4]} 13... d5
{[%clk 0:02:55.1]} 14. cxd5 {[%clk 0:02:51.1]} 14... Bb4 {[%clk 0:02:51.1]} 15.
Bd2 {[%clk 0:02:46.1]} 15... cxd5 {[%clk 0:02:37.4]} 16. Nb5 {[%clk 0:02:45]}
16... Bxd2+ {[%clk 0:02:30.2]} 17. Kxd2 {[%clk 0:02:39.8]} 17... Kd7 {[%clk
0:02:29.9]} 18. Rac1 {[%clk 0:02:38.9]} 18... Rhc8 {[%clk 0:02:28.4]} 19. f3
{[%clk 0:02:39.1]} 19... a6 {[%clk 0:02:03.6]} 20. Nd4 {[%clk 0:02:38.7]} 20...
Kd6 {[%clk 0:02:04]} 21. a4 {[%clk 0:02:30.1]} 21... a5 {[%clk 0:01:37.6]} 22.
Bd3 {[%clk 0:02:23.9]} 22... Nd7 {[%clk 0:01:26.9]} 23. Nb5+ {[%clk 0:02:21.9]}
23... Ke7 {[%clk 0:01:26.6]} 24. Rhe1 {[%clk 0:02:05.6]} 24... Nc5 {[%clk
0:01:16.1]} 25. Bc2 {[%clk 0:01:51.7]} 25... Kd7 {[%clk 0:01:13.3]} 26. Re3
{[%clk 0:01:48.3]} 26... g6 {[%clk 0:01:10.9]} 27. h4 {[%clk 0:01:47.6]} 27...
Rab8 {[%clk 0:00:59.8]} 28. Rc3 {[%clk 0:01:46.7]} 28... Na6 {[%clk 0:00:48.5]}
29. Bd3 {[%clk 0:01:40.9]} 29... Rxc3 {[%clk 0:00:47.9]} 30. Rxc3 {[%clk
0:01:41.8]} 30... Nb4 {[%clk 0:00:41.5]} 31. Rc7+ {[%clk 0:01:32.8]} 31... Kd8
{[%clk 0:00:41.4]} 32. Ra7 {[%clk 0:01:32.3]} 32... Nc6 {[%clk 0:00:22.9]} 33.
Ra6 {[%clk 0:01:23]} 33... Kd7 {[%clk 0:00:19.6]} 34. Na7 {[%clk 0:01:08.4]}
34... Nb4 {[%clk 0:00:15.1]} 35. Bb5+ {[%clk 0:00:54.5]} 35... Rxb5 {[%clk
0:00:14.7]} 36. axb5 {[%clk 0:00:54.9]} 36... Nxa6 {[%clk 0:00:14.5]} 37. bxa6
{[%clk 0:00:55.8]} 37... Kc7 {[%clk 0:00:15.3]} 38. Nb5+ {[%clk 0:00:55.2]}
38... Kb6 {[%clk 0:00:15.5]} 39. a7 {[%clk 0:00:55.3]} 39... Kb7 {[%clk
0:00:15.7]} 40. Kc3 {[%clk 0:00:55.6]} 40... Bd7 {[%clk 0:00:15.8]} 41. Nd6+
{[%clk 0:00:55.2]} 41... Kxa7 {[%clk 0:00:16.1]} 42. Nxf7 {[%clk 0:00:56.1]}
42... Kb6 {[%clk 0:00:15.6]} 43. Ng5 {[%clk 0:00:47.1]} 43... h6 {[%clk
0:00:14.6]} 44. Nf7 {[%clk 0:00:47]} 44... h5 {[%clk 0:00:12.7]} 45. Ne5 {[%clk
0:00:40.9]} 45... Bf5 {[%clk 0:00:12.6]} 46. g4 {[%clk 0:00:40.1]} 46... hxg4
{[%clk 0:00:12.1]} 47. fxg4 {[%clk 0:00:39.8]} 47... Be4 {[%clk 0:00:12.5]} 48.
Nd7+ {[%clk 0:00:31.3]} 48... Kb5 {[%clk 0:00:10.9]} 49. Nf6 {[%clk 0:00:30]}
49... Bf3 {[%clk 0:00:09.1]} 50. h5 {[%clk 0:00:19.9]} 50... gxh5 {[%clk
0:00:09.1]} 51. g5 {[%clk 0:00:18.7]} 51... d4+ {[%clk 0:00:03.6]} 52. Kxd4
{[%clk 0:00:17.8]} 1-0

[Event "*** Titled Tuesday Blitz"]
[Site "Chess.com"]
[Date "2020.11.03"]
[Round "8"]
[White "IceBelka"]
[Black "GM_LOADING"]
[Result "1-0"]
[WhiteElo "2223"]
[BlackElo "2460"]
[TimeControl "180+1"]
[EndTime "11:32:53 PST"]
[Termination "IceBelka won by resignation"]

1. e4 {[%clk 0:03:00]} 1... e5 {[%clk 0:02:54.6]} 2. Nf3 {[%clk 0:02:58.8]} 2...
Nc6 {[%clk 0:02:50.5]} 3. d4 {[%clk 0:02:58.6]} 3... exd4 {[%clk 0:02:49.7]} 4.
Nxd4 {[%clk 0:02:59.5]} 4... Bc5 {[%clk 0:02:48.2]} 5. Be3 {[%clk 0:02:59]} 5...
Qf6 {[%clk 0:02:40.2]} 6. c3 {[%clk 0:02:58.7]} 6... Nge7 {[%clk 0:02:39.7]} 7.
g3 {[%clk 0:02:58.6]} 7... O-O {[%clk 0:02:22.8]} 8. Bg2 {[%clk 0:02:57.4]} 8...
d6 {[%clk 0:02:21.2]} 9. O-O {[%clk 0:02:55.8]} 9... Re8 {[%clk 0:02:19.8]} 10.
Qd2 {[%clk 0:02:41.9]} 10... Bb6 {[%clk 0:02:18]} 11. f4 {[%clk 0:02:30.4]}
11... Bd7 {[%clk 0:02:14.8]} 12. Na3 {[%clk 0:02:27.7]} 12... Rad8 {[%clk
0:00:58.2]} 13. Rae1 {[%clk 0:02:23.4]} 13... h6 {[%clk 0:00:42.1]} 14. h3
{[%clk 0:02:22.2]} 14... Nxd4 {[%clk 0:00:30.2]} 15. cxd4 {[%clk 0:02:12]} 15...
Nc6 {[%clk 0:00:29.9]} 16. Nc2 {[%clk 0:02:08.6]} 16... Qe7 {[%clk 0:00:25.3]}
17. Kh2 {[%clk 0:02:02.6]} 17... Qf8 {[%clk 0:00:13]} 18. Qf2 {[%clk 0:02:00.4]}
18... d5 {[%clk 0:00:11.5]} 19. e5 {[%clk 0:01:55.9]} 19... Ne7 {[%clk
0:00:11.2]} 20. g4 {[%clk 0:01:54]} 20... Rc8 {[%clk 0:00:10.7]} 21. f5 {[%clk
0:01:53.2]} 21... f6 {[%clk 0:00:11.2]} 22. e6 {[%clk 0:01:51.3]} 22... Bb5
{[%clk 0:00:10.7]} 23. Rg1 {[%clk 0:01:45.5]} 23... Bd3 {[%clk 0:00:10.7]} 24.
Nb4 {[%clk 0:01:38.4]} 24... Be4 {[%clk 0:00:11]} 25. Bxe4 {[%clk 0:01:26.2]}
25... dxe4 {[%clk 0:00:11.9]} 26. a3 {[%clk 0:01:05.4]} 26... a5 {[%clk
0:00:09.3]} 27. Nc2 {[%clk 0:01:04.8]} 27... Nd5 {[%clk 0:00:09.8]} 28. Qg2
{[%clk 0:01:02.3]} 28... c5 {[%clk 0:00:06.9]} 29. Qxe4 {[%clk 0:01:00.2]} 29...
Qd6+ {[%clk 0:00:07.1]} 30. Kh1 {[%clk 0:00:58.4]} 30... cxd4 {[%clk 0:00:06.3]}
31. Nxd4 {[%clk 0:00:57.9]} 31... Nxe3 {[%clk 0:00:05.6]} 32. Nb5 {[%clk
0:00:41.5]} 32... Qd2 {[%clk 0:00:05.3]} 33. Nc3 {[%clk 0:00:28.3]} 33... Qd4
{[%clk 0:00:05.1]} 34. Qxb7 {[%clk 0:00:18]} 34... Rc7 {[%clk 0:00:05.2]} 35.
Qe4 {[%clk 0:00:15.9]} 35... Qxe4+ {[%clk 0:00:05]} 36. Nxe4 {[%clk 0:00:16.1]}
36... Rc2 {[%clk 0:00:04.6]} 37. Nd6 {[%clk 0:00:14]} 37... Re7 {[%clk
0:00:04.7]} 38. b4 {[%clk 0:00:13.5]} 38... axb4 {[%clk 0:00:04.8]} 39. axb4
{[%clk 0:00:14.4]} 39... Nd5 {[%clk 0:00:04.3]} 40. Rg2 {[%clk 0:00:12.1]} 40...
Rxg2 {[%clk 0:00:02.9]} 41. Kxg2 {[%clk 0:00:13]} 41... Bc7 {[%clk 0:00:03.5]}
42. Nc8 {[%clk 0:00:12.7]} 42... Re8 {[%clk 0:00:03.9]} 43. Na7 {[%clk
0:00:12.1]} 43... Be5 {[%clk 0:00:03.8]} 44. Nc6 {[%clk 0:00:11.8]} 44... Nf4+
{[%clk 0:00:04.1]} 45. Kf3 {[%clk 0:00:11.1]} 45... Nd3 {[%clk 0:00:04.6]} 46.
Re3 {[%clk 0:00:10.7]} 46... Rc8 {[%clk 0:00:03.5]} 47. Rxd3 {[%clk 0:00:09.1]}
47... Rc7 {[%clk 0:00:04]} 48. Rd8+ {[%clk 0:00:09.1]} 1-0

[Event "*** Titled Tuesday Blitz"]
[Site "Chess.com"]
[Date "2020.11.03"]
[Round "8"]
[White "kleopl"]
[Black "Chernobay_Artem"]
[Result "0-1"]
[WhiteElo "2446"]
[BlackElo "2621"]
[TimeControl "180+1"]
[EndTime "11:32:55 PST"]
[Termination "Chernobay_Artem won by resignation"]

1. c4 {[%clk 0:03:00.9]} 1... Nf6 {[%clk 0:02:57.7]} 2. Nc3 {[%clk 0:03:00]}
2... g6 {[%clk 0:02:55.9]} 3. g3 {[%clk 0:02:59.5]} 3... Bg7 {[%clk 0:02:56.3]}
4. Bg2 {[%clk 0:03:00.2]} 4... d6 {[%clk 0:02:56.5]} 5. e4 {[%clk 0:03:00.2]}
5... O-O {[%clk 0:02:54.7]} 6. Nge2 {[%clk 0:03:00]} 6... e5 {[%clk 0:02:49]} 7.
O-O {[%clk 0:02:59.4]} 7... Nc6 {[%clk 0:02:47.3]} 8. h3 {[%clk 0:02:59]} 8...
Nd4 {[%clk 0:02:44.5]} 9. Nxd4 {[%clk 0:02:53.8]} 9... exd4 {[%clk 0:02:44.1]}
10. Ne2 {[%clk 0:02:54.4]} 10... c5 {[%clk 0:02:42.5]} 11. d3 {[%clk 0:02:54.3]}
11... Rb8 {[%clk 0:02:30.5]} 12. f4 {[%clk 0:02:50.7]} 12... a6 {[%clk
0:02:29.2]} 13. g4 {[%clk 0:02:46.1]} 13... b5 {[%clk 0:02:27.3]} 14. cxb5
{[%clk 0:02:45.3]} 14... axb5 {[%clk 0:02:27.1]} 15. f5 {[%clk 0:02:43.2]} 15...
Nd7 {[%clk 0:02:20]} 16. Nf4 {[%clk 0:02:39.8]} 16... Ne5 {[%clk 0:02:18]} 17.
Nd5 {[%clk 0:02:38.4]} 17... Re8 {[%clk 0:02:17.4]} 18. Bf4 {[%clk 0:02:29.9]}
18... Bb7 {[%clk 0:02:14]} 19. Bxe5 {[%clk 0:02:25.3]} 19... Bxe5 {[%clk
0:02:12.5]} 20. Qf3 {[%clk 0:02:21.2]} 20... Rf8 {[%clk 0:01:54.6]} 21. b3
{[%clk 0:02:14.2]} 21... Qg5 {[%clk 0:01:45.7]} 22. Kh1 {[%clk 0:02:12.3]} 22...
Ra8 {[%clk 0:01:40.7]} 23. Nc7 {[%clk 0:02:04.8]} 23... Ra5 {[%clk 0:01:25.1]}
24. a4 {[%clk 0:02:02.9]} 24... bxa4 {[%clk 0:01:19]} 25. Rxa4 {[%clk
0:02:01.1]} 25... Rxa4 {[%clk 0:01:15.3]} 26. bxa4 {[%clk 0:02:02]} 26... Qd8
{[%clk 0:01:15.2]} 27. Nd5 {[%clk 0:01:55.9]} 27... Ba6 {[%clk 0:01:05.5]} 28.
Rb1 {[%clk 0:01:30]} 28... c4 {[%clk 0:01:03]} 29. dxc4 {[%clk 0:01:15.8]} 29...
Bxc4 {[%clk 0:01:03.9]} 30. Nb6 {[%clk 0:01:08.7]} 30... Ba2 {[%clk 0:00:59.7]}
31. Rb2 {[%clk 0:01:08.3]} 31... Qc7 {[%clk 0:00:47.1]} 32. Qd1 {[%clk
0:01:03.2]} 32... Rb8 {[%clk 0:00:31]} 33. a5 {[%clk 0:01:02.2]} 33... Qc3
{[%clk 0:00:19]} 34. Rxa2 {[%clk 0:00:59.8]} 34... Qg3 {[%clk 0:00:19.3]} 35.
Qg1 {[%clk 0:00:59.7]} 35... d3 {[%clk 0:00:19.2]} 36. Rd2 {[%clk 0:00:42.3]}
36... Bc3 {[%clk 0:00:15.9]} 37. Rd1 {[%clk 0:00:41.7]} 37... Bxa5 {[%clk
0:00:15.4]} 38. Nd5 {[%clk 0:00:39.5]} 38... Rb2 {[%clk 0:00:14.3]} 39. fxg6
{[%clk 0:00:30.8]} 39... hxg6 {[%clk 0:00:13.7]} 40. Qf1 {[%clk 0:00:27.7]}
40... Rf2 {[%clk 0:00:12.8]} 41. Qg1 {[%clk 0:00:26.1]} 41... d2 {[%clk
0:00:10.4]} 42. Ra1 {[%clk 0:00:22.1]} 42... Re2 {[%clk 0:00:08.1]} 43. Bf1
{[%clk 0:00:12.1]} 43... Qxg1+ {[%clk 0:00:06]} 44. Kxg1 {[%clk 0:00:12.7]}
44... Re1 {[%clk 0:00:06.7]} 45. Rxa5 {[%clk 0:00:12.1]} 45... Rxf1+ {[%clk
0:00:06.9]} 46. Kxf1 {[%clk 0:00:11.1]} 46... d1=Q+ {[%clk 0:00:07.3]} 47. Kf2
{[%clk 0:00:11.4]} 47... Qd2+ {[%clk 0:00:07.9]} 48. Kf3 {[%clk 0:00:11.8]}
48... Qxa5 {[%clk 0:00:08.8]} 0-1

[Event "*** Titled Tuesday Blitz"]
[Site "Chess.com"]
[Date "2020.11.03"]
[Round "8"]
[White "DinaBelenkaya"]
[Black "BegmuratovKh2010"]
[Result "0-1"]
[WhiteElo "2344"]
[BlackElo "2460"]
[TimeControl "180+1"]
[EndTime "11:32:56 PST"]
[Termination "BegmuratovKh2010 won by checkmate"]

1. e4 {[%clk 0:00:58]} 1... e5 {[%clk 0:02:46.9]} 2. Nf3 {[%clk 0:00:57.5]} 2...
Nc6 {[%clk 0:02:46.4]} 3. Nc3 {[%clk 0:00:58.4]} 3... Nf6 {[%clk 0:02:45.9]} 4.
d4 {[%clk 0:00:59]} 4... exd4 {[%clk 0:02:45.4]} 5. Nxd4 {[%clk 0:00:59.9]} 5...
d6 {[%clk 0:02:45.5]} 6. Nxc6 {[%clk 0:01:00.8]} 6... bxc6 {[%clk 0:02:46.3]} 7.
Bd3 {[%clk 0:01:01.7]} 7... Be7 {[%clk 0:02:45.7]} 8. O-O {[%clk 0:01:01.7]}
8... O-O {[%clk 0:02:45.5]} 9. f4 {[%clk 0:01:01]} 9... Nd7 {[%clk 0:02:40.3]}
10. Qe1 {[%clk 0:01:00.9]} 10... Bf6 {[%clk 0:02:39.5]} 11. Qg3 {[%clk
0:00:59.9]} 11... Qe7 {[%clk 0:02:34.8]} 12. Bd2 {[%clk 0:00:54.2]} 12... a5
{[%clk 0:02:28.2]} 13. Rae1 {[%clk 0:00:54]} 13... Bd4+ {[%clk 0:02:24.3]} 14.
Kh1 {[%clk 0:00:53.3]} 14... Bf6 {[%clk 0:02:12.7]} 15. a4 {[%clk 0:00:46.8]}
15... Bh4 {[%clk 0:02:12.2]} 16. Qf3 {[%clk 0:00:38.8]} 16... Bxe1 {[%clk
0:02:11]} 17. Rxe1 {[%clk 0:00:39.7]} 17... Nc5 {[%clk 0:02:08.9]} 18. Qg3
{[%clk 0:00:38.9]} 18... Nxd3 {[%clk 0:02:07.1]} 19. cxd3 {[%clk 0:00:39.8]}
19... f6 {[%clk 0:02:03.1]} 20. f5 {[%clk 0:00:40.1]} 20... Rb8 {[%clk
0:02:00.5]} 21. Nd1 {[%clk 0:00:36.9]} 21... Ba6 {[%clk 0:01:52.3]} 22. Bxa5
{[%clk 0:00:36]} 22... Rfe8 {[%clk 0:01:43.6]} 23. Bc3 {[%clk 0:00:35.7]} 23...
Rb3 {[%clk 0:01:40.2]} 24. Nf2 {[%clk 0:00:33]} 24... d5 {[%clk 0:01:36.8]} 25.
Ng4 {[%clk 0:00:32.6]} 25... d4 {[%clk 0:01:15.9]} 26. Bxd4 {[%clk 0:00:30.3]}
26... Rxd3 {[%clk 0:01:14.7]} 27. Nxf6+ {[%clk 0:00:26.2]} 27... Qxf6 {[%clk
0:01:13.8]} 28. Bxf6 {[%clk 0:00:23.4]} 28... Rxg3 {[%clk 0:01:13.3]} 29. hxg3
{[%clk 0:00:24.2]} 29... gxf6 {[%clk 0:01:13.3]} 30. Rc1 {[%clk 0:00:19.2]}
30... Bb7 {[%clk 0:01:13.1]} 31. Rc4 {[%clk 0:00:18.5]} 31... Ra8 {[%clk
0:01:02.2]} 32. Kg1 {[%clk 0:00:18.4]} 32... Kf7 {[%clk 0:01:01.2]} 33. Kf2
{[%clk 0:00:18.6]} 33... Ke7 {[%clk 0:00:56.8]} 34. Ke3 {[%clk 0:00:18.9]} 34...
Kd6 {[%clk 0:00:57.2]} 35. Kd4 {[%clk 0:00:18.9]} 35... c5+ {[%clk 0:00:55.4]}
36. Ke3 {[%clk 0:00:15.3]} 36... Bc6 {[%clk 0:00:52.4]} 37. b4 {[%clk 0:00:12]}
37... cxb4 {[%clk 0:00:50.5]} 38. Rxb4 {[%clk 0:00:11.3]} 38... Rxa4 {[%clk
0:00:50.3]} 39. Rb2 {[%clk 0:00:09.6]} 39... Rxe4+ {[%clk 0:00:49.5]} 40. Kd3
{[%clk 0:00:09.7]} 40... Re5 {[%clk 0:00:49.7]} 41. g4 {[%clk 0:00:09.6]} 41...
Re4 {[%clk 0:00:48.5]} 42. g5 {[%clk 0:00:06.4]} 42... fxg5 {[%clk 0:00:48]} 43.
Rb8 {[%clk 0:00:06.8]} 43... Rf4 {[%clk 0:00:46.5]} 44. Rd8+ {[%clk 0:00:05.5]}
44... Ke5 {[%clk 0:00:46.1]} 45. Rc8 {[%clk 0:00:03.6]} 45... Rxf5 {[%clk
0:00:44.3]} 46. Rxc7 {[%clk 0:00:03.7]} 46... Bxg2 {[%clk 0:00:44.7]} 47. Rxh7
{[%clk 0:00:03.7]} 47... Be4+ {[%clk 0:00:44.8]} 48. Ke2 {[%clk 0:00:03.9]}
48... Rf2+ {[%clk 0:00:44.7]} 49. Ke3 {[%clk 0:00:03]} 49... Bxh7 {[%clk
0:00:45.6]} 50. Kxf2 {[%clk 0:00:02.9]} 50... Kf4 {[%clk 0:00:44.6]} 51. Kg2
{[%clk 0:00:03.1]} 51... g4 {[%clk 0:00:45.4]} 52. Kh2 {[%clk 0:00:03.3]} 52...
Be4 {[%clk 0:00:45.4]} 53. Kg1 {[%clk 0:00:04]} 53... g3 {[%clk 0:00:45.8]} 54.
Kf1 {[%clk 0:00:03.8]} 54... Ke3 {[%clk 0:00:42.1]} 55. Kg1 {[%clk 0:00:04.7]}
55... Kf3 {[%clk 0:00:40.2]} 56. Kf1 {[%clk 0:00:05.2]} 56... g2+ {[%clk
0:00:40.1]} 57. Kg1 {[%clk 0:00:06.1]} 57... Ke2 {[%clk 0:00:40.3]} 58. Kh2
{[%clk 0:00:06.1]} 58... Kf2 {[%clk 0:00:40.5]} 59. Kh3 {[%clk 0:00:06.9]} 59...
g1=Q {[%clk 0:00:40.5]} 60. Kh4 {[%clk 0:00:07.7]} 60... Qg6 {[%clk 0:00:40.2]}
61. Kh3 {[%clk 0:00:07.5]} 61... Qh5# {[%clk 0:00:40.3]} 0-1

[Event "*** Titled Tuesday Blitz"]
[Site "Chess.com"]
[Date "2020.11.03"]
[Round "8"]
[White "Sergienko_Sergey"]
[Black "Orest_Vovk"]
[Result "0-1"]
[WhiteElo "2320"]
[BlackElo "2450"]
[TimeControl "180+1"]
[EndTime "11:32:56 PST"]
[Termination "Orest_Vovk won on time"]

1. e4 {[%clk 0:02:59.2]} 1... g5 {[%clk 0:02:58]} 2. d4 {[%clk 0:02:57.2]} 2...
g4 {[%clk 0:02:58]} 3. Nc3 {[%clk 0:02:53.6]} 3... Bg7 {[%clk 0:02:55.3]} 4. Be3
{[%clk 0:02:36.7]} 4... c5 {[%clk 0:02:50.5]} 5. dxc5 {[%clk 0:02:31.1]} 5...
Bxc3+ {[%clk 0:02:48.7]} 6. bxc3 {[%clk 0:02:30.5]} 6... Nc6 {[%clk 0:02:44.3]}
7. Qxg4 {[%clk 0:02:09.4]} 7... Nf6 {[%clk 0:02:40.8]} 8. Qh4 {[%clk 0:02:09]}
8... Qa5 {[%clk 0:02:37.6]} 9. Ne2 {[%clk 0:02:06.9]} 9... b6 {[%clk 0:02:30.9]}
10. cxb6 {[%clk 0:02:02.3]} 10... d6 {[%clk 0:02:29.6]} 11. Bd2 {[%clk
0:01:55.1]} 11... Rg8 {[%clk 0:02:23.4]} 12. Ng3 {[%clk 0:01:38.6]} 12... Rg4
{[%clk 0:01:59]} 13. Qh6 {[%clk 0:01:37.2]} 13... Nxe4 {[%clk 0:01:59.1]} 14.
Be2 {[%clk 0:01:25.5]} 14... Nxg3 {[%clk 0:01:42.6]} 15. hxg3 {[%clk 0:01:16.5]}
15... Re4 {[%clk 0:01:41.1]} 16. Qxh7 {[%clk 0:00:59.6]} 16... Rxe2+ {[%clk
0:01:18.9]} 17. Kxe2 {[%clk 0:00:59.5]} 17... Ba6+ {[%clk 0:01:19.8]} 18. Kd1
{[%clk 0:00:49.4]} 18... axb6 {[%clk 0:01:19.3]} 19. Qe4 {[%clk 0:00:40.5]}
19... Kd7 {[%clk 0:01:08.8]} 20. Re1 {[%clk 0:00:38.1]} 20... Rc8 {[%clk
0:00:55.2]} 21. a4 {[%clk 0:00:26.2]} 21... Ne5 {[%clk 0:00:44.7]} 22. Qb4
{[%clk 0:00:20.5]} 22... Qd5 {[%clk 0:00:38.6]} 23. Rxe5 {[%clk 0:00:14.5]}
23... Qxe5 {[%clk 0:00:30.6]} 24. Qxb6 {[%clk 0:00:12.5]} 24... Qe2+ {[%clk
0:00:27.3]} 25. Kc1 {[%clk 0:00:12.6]} 25... Rc7 {[%clk 0:00:25.7]} 26. Qe3
{[%clk 0:00:09.8]} 26... Qf1+ {[%clk 0:00:25.4]} 27. Qe1 {[%clk 0:00:09.6]}
27... Qxg2 {[%clk 0:00:25.3]} 28. Rb1 {[%clk 0:00:09]} 28... Qc6 {[%clk
0:00:21.3]} 29. Qe3 {[%clk 0:00:07.3]} 29... Qxa4 {[%clk 0:00:18]} 30. Qf4
{[%clk 0:00:06.9]} 30... Qa3+ {[%clk 0:00:16.8]} 31. Kd1 {[%clk 0:00:06.9]}
31... Bc4 {[%clk 0:00:16.1]} 32. Qf5+ {[%clk 0:00:05.8]} 32... Be6 {[%clk
0:00:12.7]} 33. Qb5+ {[%clk 0:00:05.4]} 33... Rc6 {[%clk 0:00:12.4]} 34. Qb7+
{[%clk 0:00:05.2]} 34... Rc7 {[%clk 0:00:12.8]} 35. Qb5+ {[%clk 0:00:05.3]}
35... Kd8 {[%clk 0:00:12.1]} 36. Qb8+ {[%clk 0:00:05]} 36... Rc8 {[%clk
0:00:12.4]} 37. Qb6+ {[%clk 0:00:05]} 37... Ke8 {[%clk 0:00:12.7]} 38. Qb5+
{[%clk 0:00:04.9]} 38... Bd7 {[%clk 0:00:12.9]} 39. Qh5 {[%clk 0:00:04.1]} 39...
Bc6 {[%clk 0:00:10.8]} 40. Qh8+ {[%clk 0:00:03.7]} 40... Kd7 {[%clk 0:00:11.1]}
41. Qh3+ {[%clk 0:00:04]} 41... e6 {[%clk 0:00:11.1]} 42. Qh7 {[%clk 0:00:03.9]}
42... Bf3+ {[%clk 0:00:08.8]} 43. Ke1 {[%clk 0:00:02.9]} 43... Rf8 {[%clk
0:00:09.1]} 44. Qd3 {[%clk 0:00:02.2]} 44... Qa8 {[%clk 0:00:07.2]} 45. Qe3
{[%clk 0:00:01.6]} 45... Rh8 {[%clk 0:00:05.1]} 0-1